[Event "Early-Titled-Tuesday-Blitz-January-16-2024"]
[Site "Chess.com"]
[Date "2024.01.16"]
[Round "7"]
[White "MdChess1734"]
[Black "FARIZA2018"]
[Result "0-1"]
[WhiteElo "2404"]
[BlackElo "2507"]
[TimeControl "180+1"]
[EndTime "9:21:41 PST"]
[Termination "FARIZA2018 won by resignation"]

1. e4 {[%clk 0:03:00.9]} 1... e5 {[%clk 0:02:59.9]} 2. Nf3 {[%clk 0:02:59.7]}
2... Nc6 {[%clk 0:02:59.9]} 3. Bb5 {[%clk 0:03:00]} 3... a6 {[%clk 0:02:59.9]}
4. Ba4 {[%clk 0:03:00.4]} 4... Nf6 {[%clk 0:02:59.5]} 5. O-O {[%clk 0:03:00.3]}
5... Be7 {[%clk 0:02:59.1]} 6. Re1 {[%clk 0:02:54.8]} 6... b5 {[%clk 0:02:58.8]}
7. Bb3 {[%clk 0:02:54.5]} 7... d6 {[%clk 0:02:58.7]} 8. c3 {[%clk 0:02:54.2]}
8... O-O {[%clk 0:02:57.8]} 9. d4 {[%clk 0:02:51.9]} 9... Bg4 {[%clk 0:02:56.5]}
10. Be3 {[%clk 0:02:43.7]} 10... Re8 {[%clk 0:02:43]} 11. h3 {[%clk 0:02:42.6]}
11... Bh5 {[%clk 0:02:42.3]} 12. Nbd2 {[%clk 0:02:29.2]} 12... exd4 {[%clk
0:02:21.2]} 13. cxd4 {[%clk 0:02:28.2]} 13... Na5 {[%clk 0:02:12.9]} 14. Bc2
{[%clk 0:02:06.9]} 14... c5 {[%clk 0:02:12.4]} 15. b3 {[%clk 0:01:58.8]} 15...
Nc6 {[%clk 0:02:08.1]} 16. g4 {[%clk 0:01:56.1]} 16... Bg6 {[%clk 0:02:07.2]}
17. d5 {[%clk 0:01:55.8]} 17... Nb4 {[%clk 0:01:57.5]} 18. Bb1 {[%clk 0:01:51]}
18... c4 {[%clk 0:01:43]} 19. a3 {[%clk 0:01:46.7]} 19... Nd3 {[%clk 0:01:42.3]}
20. Bxd3 {[%clk 0:01:45]} 20... cxd3 {[%clk 0:01:42.1]} 21. Bd4 {[%clk
0:01:43.2]} 21... Bf8 {[%clk 0:01:37.4]} 22. Bxf6 {[%clk 0:01:12.1]} 22... Qxf6
{[%clk 0:01:36.5]} 23. Re3 {[%clk 0:00:33.8]} 23... Rac8 {[%clk 0:01:33.1]} 24.
Qf1 {[%clk 0:00:24.9]} 24... Rc3 {[%clk 0:01:25.6]} 25. Rae1 {[%clk 0:00:22.1]}
25... Qf4 {[%clk 0:01:08.7]} 26. Rxd3 {[%clk 0:00:19.8]} 26... Rc2 {[%clk
0:01:07.1]} 27. Rde3 {[%clk 0:00:15]} 27... h5 {[%clk 0:01:06.5]} 28. Qd3 {[%clk
0:00:14.9]} 28... Rec8 {[%clk 0:01:02.9]} 29. Nd4 {[%clk 0:00:13]} 29... R2c3
{[%clk 0:00:58.6]} 30. Qxc3 {[%clk 0:00:12.3]} 30... Rxc3 {[%clk 0:00:57.7]} 31.
Rxc3 {[%clk 0:00:12.8]} 31... Qxd2 {[%clk 0:00:57.3]} 0-1

[Event "Early-Titled-Tuesday-Blitz-January-16-2024"]
[Site "Chess.com"]
[Date "2024.01.16"]
[Round "7"]
[White "Russian_berezka"]
[Black "Byniolus"]
[Result "1-0"]
[WhiteElo "2577"]
[BlackElo "2751"]
[TimeControl "180+1"]
[EndTime "9:21:44 PST"]
[Termination "Russian_berezka won by resignation"]

1. d4 {[%clk 0:03:00.9]} 1... d6 {[%clk 0:03:00.2]} 2. Nc3 {[%clk 0:02:59.8]}
2... Nf6 {[%clk 0:02:59.5]} 3. Bf4 {[%clk 0:02:59.2]} 3... c6 {[%clk 0:02:54.2]}
4. e4 {[%clk 0:02:57.1]} 4... Qb6 {[%clk 0:02:53]} 5. Rb1 {[%clk 0:02:51.3]}
5... e5 {[%clk 0:02:35.2]} 6. dxe5 {[%clk 0:02:30.5]} 6... dxe5 {[%clk
0:02:36.1]} 7. Bxe5 {[%clk 0:02:31.4]} 7... Nbd7 {[%clk 0:02:12.9]} 8. Bd4
{[%clk 0:02:30.6]} 8... Bc5 {[%clk 0:02:08.4]} 9. Nf3 {[%clk 0:02:25.6]} 9...
O-O {[%clk 0:02:05.8]} 10. Bc4 {[%clk 0:02:19.4]} 10... Qb4 {[%clk 0:01:55]} 11.
Bb3 {[%clk 0:01:17]} 11... Nxe4 {[%clk 0:01:35]} 12. a3 {[%clk 0:01:12.9]} 12...
Qa5 {[%clk 0:01:33.5]} 13. O-O {[%clk 0:01:08.7]} 13... Bxd4 {[%clk 0:01:24.5]}
14. Qxd4 {[%clk 0:01:09.6]} 14... Nxc3 {[%clk 0:01:20.1]} 15. bxc3 {[%clk
0:01:10.5]} 15... Nf6 {[%clk 0:00:59.1]} 16. Rfe1 {[%clk 0:01:10.8]} 16... Bg4
{[%clk 0:00:44.9]} 17. Ne5 {[%clk 0:01:08.2]} 17... Bh5 {[%clk 0:00:37.3]} 18.
Nd7 {[%clk 0:00:51.4]} 18... Nxd7 {[%clk 0:00:34.5]} 19. Qxd7 {[%clk 0:00:52.3]}
19... Rab8 {[%clk 0:00:22.3]} 20. c4 {[%clk 0:00:39.2]} 20... Qxa3 {[%clk
0:00:20.4]} 21. Re5 {[%clk 0:00:32.9]} 21... Bg6 {[%clk 0:00:19.4]} 22. c5
{[%clk 0:00:33.6]} 22... Rfd8 {[%clk 0:00:11.6]} 23. Qc7 {[%clk 0:00:29.4]}
23... Qb2 {[%clk 0:00:09.1]} 24. Rbe1 {[%clk 0:00:28.7]} 24... Qd4 {[%clk
0:00:05.6]} 25. Qxb8 {[%clk 0:00:24.8]} 1-0

[Event "Early-Titled-Tuesday-Blitz-January-16-2024"]
[Site "Chess.com"]
[Date "2024.01.16"]
[Round "7"]
[White "lasRojas"]
[Black "m_ezat"]
[Result "1-0"]
[WhiteElo "2416"]
[BlackElo "2454"]
[TimeControl "180+1"]
[EndTime "9:21:44 PST"]
[Termination "lasRojas won by checkmate"]

1. e4 {[%clk 0:02:59.3]} 1... e5 {[%clk 0:01:35.8]} 2. Nf3 {[%clk 0:02:58.3]}
2... Nc6 {[%clk 0:01:31.8]} 3. d4 {[%clk 0:02:58.3]} 3... exd4 {[%clk
0:01:31.3]} 4. Nxd4 {[%clk 0:02:59.2]} 4... Qh4 {[%clk 0:01:31.1]} 5. Nc3 {[%clk
0:02:56.9]} 5... Bb4 {[%clk 0:01:30.6]} 6. Be2 {[%clk 0:02:52.1]} 6... Bxc3+
{[%clk 0:01:27.4]} 7. bxc3 {[%clk 0:02:52.1]} 7... Qxe4 {[%clk 0:01:27]} 8. O-O
{[%clk 0:02:52.1]} 8... Nxd4 {[%clk 0:01:23.7]} 9. cxd4 {[%clk 0:02:51.4]} 9...
Nf6 {[%clk 0:01:23.7]} 10. Bf3 {[%clk 0:02:45.3]} 10... Qh4 {[%clk 0:01:22.7]}
11. Re1+ {[%clk 0:02:44.8]} 11... Kf8 {[%clk 0:01:22.7]} 12. g3 {[%clk
0:02:43.7]} 12... Qh3 {[%clk 0:01:21.9]} 13. d5 {[%clk 0:02:13]} 13... d6 {[%clk
0:01:19.7]} 14. Bg5 {[%clk 0:02:03.9]} 14... Ng4 {[%clk 0:01:13.8]} 15. Bxg4
{[%clk 0:01:07.6]} 15... Bxg4 {[%clk 0:00:50.8]} 16. Be7+ {[%clk 0:01:06]} 16...
Kg8 {[%clk 0:00:49.9]} 17. Qd3 {[%clk 0:01:03.4]} 17... h6 {[%clk 0:00:48.9]}
18. Rab1 {[%clk 0:01:00.7]} 18... b6 {[%clk 0:00:48.1]} 19. Rb4 {[%clk
0:01:00.4]} 19... Re8 {[%clk 0:00:44.7]} 20. Rf4 {[%clk 0:00:55]} 20... Bd7
{[%clk 0:00:25.5]} 21. Qf3 {[%clk 0:00:51.3]} 21... f6 {[%clk 0:00:23.5]} 22.
Rfe4 {[%clk 0:00:40.9]} 22... Qf5 {[%clk 0:00:20.6]} 23. Rf4 {[%clk 0:00:29]}
23... Qxc2 {[%clk 0:00:20]} 24. Qh5 {[%clk 0:00:24.3]} 24... Kh7 {[%clk
0:00:17.9]} 25. Rxf6 {[%clk 0:00:19.7]} 25... Rxe7 {[%clk 0:00:13.5]} 26. Rxh6+
{[%clk 0:00:15.6]} 26... Kg8 {[%clk 0:00:12.6]} 27. Rxh8# {[%clk 0:00:15.6]} 1-0

[Event "Early-Titled-Tuesday-Blitz-January-16-2024"]
[Site "Chess.com"]
[Date "2024.01.16"]
[Round "7"]
[White "Nf3c5"]
[Black "AndresDelgado77"]
[Result "1-0"]
[WhiteElo "2562"]
[BlackElo "2389"]
[TimeControl "180+1"]
[EndTime "9:21:46 PST"]
[Termination "Nf3c5 won on time"]

1. e4 {[%clk 0:03:00.9]} 1... e6 {[%clk 0:02:59.5]} 2. d4 {[%clk 0:02:56]} 2...
d5 {[%clk 0:02:59.2]} 3. Nd2 {[%clk 0:02:56.9]} 3... Nc6 {[%clk 0:02:58.6]} 4.
Ngf3 {[%clk 0:02:56.3]} 4... Nf6 {[%clk 0:02:58.8]} 5. e5 {[%clk 0:02:54.2]}
5... Nd7 {[%clk 0:02:58.9]} 6. Be2 {[%clk 0:02:54.3]} 6... f6 {[%clk 0:02:58.2]}
7. exf6 {[%clk 0:02:52.5]} 7... Qxf6 {[%clk 0:02:58.3]} 8. Nf1 {[%clk
0:02:53.2]} 8... e5 {[%clk 0:02:55.8]} 9. dxe5 {[%clk 0:02:14.7]} 9... Ndxe5
{[%clk 0:02:48]} 10. Ne3 {[%clk 0:02:13.7]} 10... d4 {[%clk 0:02:23.8]} 11. Nd5
{[%clk 0:02:01.8]} 11... Qd6 {[%clk 0:01:56.1]} 12. c4 {[%clk 0:02:01.1]} 12...
dxc3 {[%clk 0:01:35]} 13. bxc3 {[%clk 0:01:51.4]} 13... Be6 {[%clk 0:01:26.3]}
14. c4 {[%clk 0:01:51.1]} 14... Nxf3+ {[%clk 0:01:23.8]} 15. Bxf3 {[%clk
0:01:49.2]} 15... Qe5+ {[%clk 0:01:19.8]} 16. Qe2 {[%clk 0:01:49.3]} 16... O-O-O
{[%clk 0:01:06.3]} 17. O-O {[%clk 0:01:40.5]} 17... Qxe2 {[%clk 0:00:53.4]} 18.
Bxe2 {[%clk 0:01:37.9]} 18... Nd4 {[%clk 0:00:51.5]} 19. Bd3 {[%clk 0:01:29.8]}
19... Bxd5 {[%clk 0:00:48.2]} 20. cxd5 {[%clk 0:01:29.4]} 20... Rxd5 {[%clk
0:00:48.7]} 21. Bc4 {[%clk 0:01:15.8]} 21... Rc5 {[%clk 0:00:44.3]} 22. Bd3
{[%clk 0:01:14.8]} 22... Rc3 {[%clk 0:00:33.1]} 23. Rd1 {[%clk 0:01:06.6]} 23...
Ba3 {[%clk 0:00:11.7]} 24. Be3 {[%clk 0:00:54.9]} 24... Nc6 {[%clk 0:00:08.1]}
25. Rab1 {[%clk 0:00:46.9]} 25... Rd8 {[%clk 0:00:06]} 26. Bxh7 {[%clk
0:00:40.6]} 26... Rxd1+ {[%clk 0:00:03.4]} 27. Rxd1 {[%clk 0:00:41.5]} 27... a6
{[%clk 0:00:02.8]} 28. Be4 {[%clk 0:00:37.2]} 1-0

[Event "Early-Titled-Tuesday-Blitz-January-16-2024"]
[Site "Chess.com"]
[Date "2024.01.16"]
[Round "7"]
[White "Maftuna2303"]
[Black "UNSTOPPABLE_LEGEND"]
[Result "1-0"]
[WhiteElo "2381"]
[BlackElo "2506"]
[TimeControl "180+1"]
[EndTime "9:21:46 PST"]
[Termination "Maftuna2303 won by resignation"]

1. e4 {[%clk 0:03:00.9]} 1... Nc6 {[%clk 0:02:59.4]} 2. d4 {[%clk 0:03:00.4]}
2... e5 {[%clk 0:02:59.4]} 3. d5 {[%clk 0:02:58.4]} 3... Nce7 {[%clk 0:02:59.6]}
4. c4 {[%clk 0:02:58.2]} 4... Ng6 {[%clk 0:02:59.9]} 5. Nc3 {[%clk 0:02:57.3]}
5... Bc5 {[%clk 0:03:00.2]} 6. g3 {[%clk 0:02:56.8]} 6... a5 {[%clk 0:02:58]} 7.
Bg2 {[%clk 0:02:56.4]} 7... h5 {[%clk 0:02:58]} 8. Nge2 {[%clk 0:02:55.1]} 8...
h4 {[%clk 0:02:57.7]} 9. h3 {[%clk 0:02:50]} 9... hxg3 {[%clk 0:02:57.2]} 10.
fxg3 {[%clk 0:02:49.9]} 10... d6 {[%clk 0:02:54.1]} 11. Qd3 {[%clk 0:02:48.9]}
11... Nf6 {[%clk 0:02:52.6]} 12. Be3 {[%clk 0:02:48.2]} 12... Bxe3 {[%clk
0:02:49.4]} 13. Qxe3 {[%clk 0:02:48.1]} 13... Nh7 {[%clk 0:02:49.7]} 14. h4
{[%clk 0:02:46.6]} 14... Bg4 {[%clk 0:02:49.2]} 15. O-O-O {[%clk 0:02:44.1]}
15... Qe7 {[%clk 0:02:43.9]} 16. Rdf1 {[%clk 0:02:42.2]} 16... Nf6 {[%clk
0:02:42.5]} 17. Qg5 {[%clk 0:02:32.3]} 17... Rh5 {[%clk 0:02:39.2]} 18. Qe3
{[%clk 0:02:31]} 18... Bd7 {[%clk 0:02:34.5]} 19. Bf3 {[%clk 0:02:29.4]} 19...
Rh6 {[%clk 0:02:31.6]} 20. h5 {[%clk 0:02:16.5]} 20... Nf8 {[%clk 0:02:28.6]}
21. Qg5 {[%clk 0:02:14.2]} 21... Rh7 {[%clk 0:02:21.6]} 22. g4 {[%clk
0:02:13.5]} 22... O-O-O {[%clk 0:02:20.4]} 23. Qh4 {[%clk 0:02:11]} 23... Ng8
{[%clk 0:02:08.2]} 24. Qf2 {[%clk 0:02:08.9]} 24... Qg5+ {[%clk 0:02:07.3]} 25.
Kb1 {[%clk 0:02:08.2]} 25... b6 {[%clk 0:02:00.7]} 26. Rhg1 {[%clk 0:02:01]}
26... Nf6 {[%clk 0:01:59.8]} 27. Qg2 {[%clk 0:01:51.7]} 27... g6 {[%clk
0:01:54.5]} 28. hxg6 {[%clk 0:01:48.8]} 28... Nxg6 {[%clk 0:01:53.7]} 29. Qf2
{[%clk 0:01:44.7]} 29... Rdh8 {[%clk 0:01:53.2]} 30. a3 {[%clk 0:01:23.6]} 30...
Rh2 {[%clk 0:01:51.4]} 31. Qe1 {[%clk 0:01:23.1]} 31... Qe3 {[%clk 0:01:44.8]}
32. g5 {[%clk 0:01:17.1]} 32... Ng8 {[%clk 0:01:20.6]} 33. Bg4 {[%clk
0:01:13.7]} 33... Bxg4 {[%clk 0:01:18.6]} 34. Rxg4 {[%clk 0:01:14.1]} 34... Qd3+
{[%clk 0:01:15.7]} 35. Ka1 {[%clk 0:01:12.8]} 35... R8h7 {[%clk 0:01:14.6]} 36.
Qg3 {[%clk 0:01:08.1]} 36... Qxc4 {[%clk 0:01:13.3]} 37. Qf3 {[%clk 0:01:07.4]}
37... N8e7 {[%clk 0:01:12.8]} 38. Rgg1 {[%clk 0:01:07.1]} 38... R2h3 {[%clk
0:01:11.5]} 39. Qg4+ {[%clk 0:01:06.1]} 39... Kb7 {[%clk 0:01:10.9]} 40. Qd7
{[%clk 0:01:06]} 40... Re3 {[%clk 0:01:09.7]} 41. Rc1 {[%clk 0:01:05.5]} 41...
Ka6 {[%clk 0:01:03.2]} 42. Na4 {[%clk 0:00:51.9]} 42... Qxe2 {[%clk 0:00:58.6]}
43. Rxc7 {[%clk 0:00:51.4]} 1-0

[Event "Early-Titled-Tuesday-Blitz-January-16-2024"]
[Site "Chess.com"]
[Date "2024.01.16"]
[Round "7"]
[White "vi_pranav"]
[Black "AryanTari"]
[Result "0-1"]
[WhiteElo "3034"]
[BlackElo "2937"]
[TimeControl "180+1"]
[EndTime "9:21:54 PST"]
[Termination "AryanTari won by resignation"]

1. e4 {[%clk 0:03:00.9]} 1... e5 {[%clk 0:02:45.1]} 2. Nf3 {[%clk 0:02:57.1]}
2... Nc6 {[%clk 0:02:45.2]} 3. Bb5 {[%clk 0:02:55.8]} 3... Nge7 {[%clk
0:02:45.1]} 4. O-O {[%clk 0:02:54.9]} 4... Ng6 {[%clk 0:02:43.9]} 5. d4 {[%clk
0:02:54.6]} 5... exd4 {[%clk 0:02:43.4]} 6. Nxd4 {[%clk 0:02:55.5]} 6... Bc5
{[%clk 0:02:40.9]} 7. Nb3 {[%clk 0:02:50.6]} 7... Bb6 {[%clk 0:02:40.9]} 8. Nc3
{[%clk 0:02:51]} 8... O-O {[%clk 0:02:39.9]} 9. a4 {[%clk 0:02:50.9]} 9... a6
{[%clk 0:02:34.8]} 10. Be2 {[%clk 0:02:49.5]} 10... d6 {[%clk 0:02:34.8]} 11.
Nd5 {[%clk 0:02:33]} 11... Ba7 {[%clk 0:02:34.9]} 12. Be3 {[%clk 0:02:14.5]}
12... Bxe3 {[%clk 0:02:25.7]} 13. Nxe3 {[%clk 0:02:15.4]} 13... Nf4 {[%clk
0:02:26]} 14. Bf3 {[%clk 0:02:10.3]} 14... Ne5 {[%clk 0:02:18.3]} 15. Kh1 {[%clk
0:02:08]} 15... Qf6 {[%clk 0:02:12.5]} 16. Nd2 {[%clk 0:02:06.8]} 16... Be6
{[%clk 0:02:07.4]} 17. b3 {[%clk 0:01:20.4]} 17... c6 {[%clk 0:01:54.7]} 18. Ng4
{[%clk 0:01:09.3]} 18... Qg5 {[%clk 0:01:31.6]} 19. Nxe5 {[%clk 0:01:08.2]}
19... dxe5 {[%clk 0:01:32.5]} 20. g3 {[%clk 0:01:07.7]} 20... Rad8 {[%clk
0:01:33.1]} 21. Qe1 {[%clk 0:01:00]} 21... Bh3 {[%clk 0:01:05.1]} 22. Rg1 {[%clk
0:00:45.5]} 22... Nd3 {[%clk 0:00:48.5]} 23. cxd3 {[%clk 0:00:33.1]} 23... Rxd3
{[%clk 0:00:49.4]} 24. Be2 {[%clk 0:00:15.8]} 24... Rxd2 {[%clk 0:00:48.1]} 25.
f4 {[%clk 0:00:15.6]} 25... Qd8 {[%clk 0:00:46.7]} 26. Rd1 {[%clk 0:00:08.6]}
26... Qd4 {[%clk 0:00:40.2]} 27. Bf3 {[%clk 0:00:03.9]} 27... Qd3 {[%clk
0:00:31.4]} 28. Qe2 {[%clk 0:00:01.1]} 28... Qxe2 {[%clk 0:00:30.1]} 29. Bxe2
{[%clk 0:00:01.4]} 29... Rxe2 {[%clk 0:00:31]} 0-1

[Event "Early-Titled-Tuesday-Blitz-January-16-2024"]
[Site "Chess.com"]
[Date "2024.01.16"]
[Round "7"]
[White "1mbl4"]
[Black "bubeliang"]
[Result "0-1"]
[WhiteElo "2583"]
[BlackElo "2768"]
[TimeControl "180+1"]
[EndTime "9:21:57 PST"]
[Termination "bubeliang won on time"]

1. d4 {[%clk 0:03:00.9]} 1... b6 {[%clk 0:02:56]} 2. e4 {[%clk 0:02:58.7]} 2...
Bb7 {[%clk 0:02:56.9]} 3. Nc3 {[%clk 0:02:58.2]} 3... e6 {[%clk 0:02:54.1]} 4.
Bd3 {[%clk 0:02:53.8]} 4... Nf6 {[%clk 0:02:51.6]} 5. Nf3 {[%clk 0:02:53.4]}
5... Bb4 {[%clk 0:02:50.3]} 6. Qe2 {[%clk 0:02:47.9]} 6... d5 {[%clk 0:02:43.8]}
7. e5 {[%clk 0:02:47.2]} 7... Ne4 {[%clk 0:02:44.1]} 8. Bd2 {[%clk 0:02:46.9]}
8... Bxc3 {[%clk 0:02:41.2]} 9. Bxc3 {[%clk 0:02:33.9]} 9... c5 {[%clk
0:02:40.8]} 10. dxc5 {[%clk 0:02:18.3]} 10... Nxc3 {[%clk 0:02:38.9]} 11. bxc3
{[%clk 0:02:16.5]} 11... bxc5 {[%clk 0:02:39.8]} 12. Rb1 {[%clk 0:02:10.9]}
12... Bc6 {[%clk 0:02:37.7]} 13. c4 {[%clk 0:02:01.5]} 13... dxc4 {[%clk
0:02:27.4]} 14. Bxc4 {[%clk 0:02:02.4]} 14... Qa5+ {[%clk 0:02:26.5]} 15. Qd2
{[%clk 0:01:53.2]} 15... Qxd2+ {[%clk 0:02:24]} 16. Nxd2 {[%clk 0:01:53.7]}
16... Nd7 {[%clk 0:02:16.1]} 17. f4 {[%clk 0:01:50.8]} 17... Nb6 {[%clk
0:02:09.9]} 18. Bb5 {[%clk 0:01:43.7]} 18... Kd7 {[%clk 0:02:05.2]} 19. Ne4
{[%clk 0:01:42.2]} 19... Rhc8 {[%clk 0:02:00.3]} 20. Kf2 {[%clk 0:01:04.2]}
20... Ke7 {[%clk 0:01:54.1]} 21. Nd6 {[%clk 0:01:00.6]} 21... Rc7 {[%clk
0:01:50.8]} 22. Bxc6 {[%clk 0:00:42.4]} 22... Rxc6 {[%clk 0:01:51.7]} 23. c4
{[%clk 0:00:36.5]} 23... f6 {[%clk 0:01:46.2]} 24. Ke3 {[%clk 0:00:34.3]} 24...
Rxd6 {[%clk 0:01:38.7]} 25. exd6+ {[%clk 0:00:32.4]} 25... Kxd6 {[%clk
0:01:39.6]} 26. Kd3 {[%clk 0:00:30.6]} 26... Kc6 {[%clk 0:01:36.2]} 27. Kc3
{[%clk 0:00:30.7]} 27... Re8 {[%clk 0:01:31.7]} 28. Rhe1 {[%clk 0:00:29]} 28...
Re7 {[%clk 0:01:29.9]} 29. Rbd1 {[%clk 0:00:28.6]} 29... Kc7 {[%clk 0:01:18.1]}
30. Rd3 {[%clk 0:00:28.5]} 30... Nd7 {[%clk 0:01:15.8]} 31. Kc2 {[%clk
0:00:20.7]} 31... e5 {[%clk 0:01:01.8]} 32. Ra3 {[%clk 0:00:16.1]} 32... Kb7
{[%clk 0:00:58.9]} 33. f5 {[%clk 0:00:13.6]} 33... Nb6 {[%clk 0:00:58.7]} 34.
Kc3 {[%clk 0:00:11.9]} 34... Rd7 {[%clk 0:00:58.6]} 35. Rb3 {[%clk 0:00:04.3]}
35... Rd4 {[%clk 0:00:57.4]} 36. Re3 {[%clk 0:00:04.4]} 36... Rxc4+ {[%clk
0:00:55.7]} 0-1

[Event "Early-Titled-Tuesday-Blitz-January-16-2024"]
[Site "Chess.com"]
[Date "2024.01.16"]
[Round "7"]
[White "Sanyura"]
[Black "Phelathegreat"]
[Result "1-0"]
[WhiteElo "2633"]
[BlackElo "2442"]
[TimeControl "180+1"]
[EndTime "9:21:57 PST"]
[Termination "Sanyura won by resignation"]

1. Nf3 {[%clk 0:02:58.6]} 1... Nf6 {[%clk 0:02:58.2]} 2. g3 {[%clk 0:02:59]}
2... d5 {[%clk 0:02:55.6]} 3. Bg2 {[%clk 0:02:59.9]} 3... Bf5 {[%clk 0:02:55.2]}
4. O-O {[%clk 0:03:00.3]} 4... e6 {[%clk 0:02:55.4]} 5. d3 {[%clk 0:03:01]} 5...
c6 {[%clk 0:02:53.7]} 6. Nbd2 {[%clk 0:03:01.6]} 6... h6 {[%clk 0:02:53.3]} 7.
b3 {[%clk 0:03:02.2]} 7... Nbd7 {[%clk 0:02:52.2]} 8. Bb2 {[%clk 0:03:02.9]}
8... Be7 {[%clk 0:02:51.9]} 9. e4 {[%clk 0:03:03.4]} 9... dxe4 {[%clk
0:02:46.7]} 10. dxe4 {[%clk 0:03:04.3]} 10... Bh7 {[%clk 0:02:46.6]} 11. Qe2
{[%clk 0:03:02.6]} 11... O-O {[%clk 0:02:46.1]} 12. Rad1 {[%clk 0:03:02.7]}
12... Qc7 {[%clk 0:02:41.7]} 13. e5 {[%clk 0:02:52.2]} 13... Nd5 {[%clk
0:02:40.8]} 14. c4 {[%clk 0:02:50.5]} 14... Nb4 {[%clk 0:02:39.5]} 15. Ne4
{[%clk 0:02:51.1]} 15... Nxa2 {[%clk 0:02:25.7]} 16. h4 {[%clk 0:02:33.4]} 16...
Nb4 {[%clk 0:02:25.3]} 17. h5 {[%clk 0:02:26.5]} 17... c5 {[%clk 0:02:15.1]} 18.
Nh4 {[%clk 0:02:14]} 18... Nc6 {[%clk 0:02:13.4]} 19. Rxd7 {[%clk 0:02:04]}
19... Qxd7 {[%clk 0:02:11]} 20. Nf6+ {[%clk 0:02:04.2]} 20... Bxf6 {[%clk
0:01:34.1]} 21. exf6 {[%clk 0:02:05.1]} 21... g5 {[%clk 0:01:27.8]} 22. hxg6
{[%clk 0:02:00.3]} 22... fxg6 {[%clk 0:01:28]} 23. Bxc6 {[%clk 0:01:48.7]} 23...
bxc6 {[%clk 0:01:05.8]} 24. f7+ {[%clk 0:01:48.9]} 24... Rxf7 {[%clk 0:00:56.5]}
25. Qe5 {[%clk 0:01:48]} 25... Rg7 {[%clk 0:00:56.4]} 26. Kh2 {[%clk 0:01:43.9]}
26... g5 {[%clk 0:00:50.5]} 27. Ng2 {[%clk 0:01:40.7]} 27... Rf8 {[%clk
0:00:48.1]} 28. Ne3 {[%clk 0:01:40.1]} 28... Bf5 {[%clk 0:00:44.3]} 29. Rd1
{[%clk 0:01:37.9]} 29... Qf7 {[%clk 0:00:43]} 30. Nxf5 {[%clk 0:01:27.3]} 30...
exf5 {[%clk 0:00:41.8]} 31. Rd6 {[%clk 0:01:27.5]} 31... Kh7 {[%clk 0:00:41]}
32. Kg2 {[%clk 0:01:19.6]} 32... Rg6 {[%clk 0:00:33.5]} 33. Rd2 {[%clk
0:01:15.9]} 33... Re6 {[%clk 0:00:31.2]} 34. Qxc5 {[%clk 0:01:11.9]} 34... f4
{[%clk 0:00:30.9]} 35. g4 {[%clk 0:01:10]} 35... f3+ {[%clk 0:00:30.4]} 36. Kh3
{[%clk 0:01:10.2]} 36... Re1 {[%clk 0:00:27.3]} 37. Qd4 {[%clk 0:00:54.7]} 37...
Rh1+ {[%clk 0:00:24.7]} 38. Kg3 {[%clk 0:00:54.9]} 38... Qf4+ {[%clk 0:00:19.9]}
39. Qxf4 {[%clk 0:00:54.4]} 39... gxf4+ {[%clk 0:00:20.8]} 40. Kxf3 {[%clk
0:00:54.5]} 40... Rh3+ {[%clk 0:00:21.1]} 41. Ke4 {[%clk 0:00:49.5]} 41... Rxb3
{[%clk 0:00:22]} 42. Be5 {[%clk 0:00:49.9]} 42... f3 {[%clk 0:00:21.5]} 43. Rd7+
{[%clk 0:00:49.5]} 43... Kg8 {[%clk 0:00:18.7]} 44. Rg7+ {[%clk 0:00:49.5]}
44... Kh8 {[%clk 0:00:19.1]} 45. Rb7+ {[%clk 0:00:49.3]} 45... Kg8 {[%clk
0:00:19.3]} 46. Rxb3 {[%clk 0:00:49.3]} 1-0

[Event "Early-Titled-Tuesday-Blitz-January-16-2024"]
[Site "Chess.com"]
[Date "2024.01.16"]
[Round "7"]
[White "MikaelyanArman"]
[Black "Makswolf200817"]
[Result "1-0"]
[WhiteElo "2844"]
[BlackElo "2662"]
[TimeControl "180+1"]
[EndTime "9:21:59 PST"]
[Termination "MikaelyanArman won by resignation"]

1. e4 {[%clk 0:03:00.9]} 1... e6 {[%clk 0:02:59.8]} 2. Qe2 {[%clk 0:02:56.1]}
2... c5 {[%clk 0:02:59.6]} 3. Nc3 {[%clk 0:02:56]} 3... Nc6 {[%clk 0:03:00]} 4.
Nf3 {[%clk 0:02:55.4]} 4... g6 {[%clk 0:03:00.6]} 5. g3 {[%clk 0:02:53.6]} 5...
Bg7 {[%clk 0:03:01.3]} 6. Bg2 {[%clk 0:02:54.1]} 6... Nge7 {[%clk 0:03:00.7]} 7.
O-O {[%clk 0:02:54.7]} 7... d6 {[%clk 0:03:00.4]} 8. d3 {[%clk 0:02:53]} 8...
O-O {[%clk 0:03:00.6]} 9. h4 {[%clk 0:02:43]} 9... h6 {[%clk 0:02:57.5]} 10. Bf4
{[%clk 0:02:40.2]} 10... e5 {[%clk 0:02:51.1]} 11. Be3 {[%clk 0:02:34.1]} 11...
Bg4 {[%clk 0:02:50.8]} 12. Qd2 {[%clk 0:02:32.7]} 12... Kh7 {[%clk 0:02:50.2]}
13. Nh2 {[%clk 0:02:32.6]} 13... Be6 {[%clk 0:02:49.7]} 14. h5 {[%clk
0:02:24.1]} 14... gxh5 {[%clk 0:02:36.4]} 15. f4 {[%clk 0:02:23.7]} 15... exf4
{[%clk 0:02:22]} 16. gxf4 {[%clk 0:02:24.6]} 16... f5 {[%clk 0:02:21.3]} 17.
Rae1 {[%clk 0:02:23.4]} 17... Ng6 {[%clk 0:02:18.4]} 18. Kh1 {[%clk 0:02:08.1]}
18... Nd4 {[%clk 0:02:11.4]} 19. Ne2 {[%clk 0:02:03.2]} 19... Nxe2 {[%clk
0:01:32]} 20. Qxe2 {[%clk 0:02:04.1]} 20... h4 {[%clk 0:01:29.8]} 21. Qh5 {[%clk
0:02:00.1]} 21... Qd7 {[%clk 0:01:06.5]} 22. Bh3 {[%clk 0:01:56.8]} 22... Bxb2
{[%clk 0:00:54.7]} 23. Rg1 {[%clk 0:01:54.6]} 23... Ne7 {[%clk 0:00:52.2]} 24.
Nf3 {[%clk 0:01:28.3]} 24... Bf6 {[%clk 0:00:44.7]} 25. Ng5+ {[%clk 0:01:11.6]}
25... Bxg5 {[%clk 0:00:43]} 26. fxg5 {[%clk 0:01:12.5]} 26... Ng8 {[%clk
0:00:39.2]} 27. gxh6 {[%clk 0:01:06.7]} 27... Rf7 {[%clk 0:00:39.2]} 28. Rg7+
{[%clk 0:00:49.1]} 28... Kh8 {[%clk 0:00:16.9]} 29. Reg1 {[%clk 0:00:48.8]}
29... Nf6 {[%clk 0:00:16.8]} 30. Qg6 {[%clk 0:00:46.2]} 30... fxe4 {[%clk
0:00:14.5]} 31. Bg5 {[%clk 0:00:31.6]} 31... Bxh3 {[%clk 0:00:07.3]} 32. Bxf6
{[%clk 0:00:31.8]} 32... Bg2+ {[%clk 0:00:06.3]} 33. Kxg2 {[%clk 0:00:27.4]} 1-0